fUSD/lending_fUSD_20250502
["ID","MTS","AMOUNT","RATE_DAILY","PERIOD"]
[359583795,1746150638367,-500.0,0.00019983,2]
[359583796,1746150638377,-500.0,0.00019983,2]
[359583797,1746150638386,-500.0,0.00019983,2]
[359583798,1746150638395,-500.0,0.00019983,2]
[359583799,1746150638404,-500.0,0.00019983,2]
[359583800,1746150638413,-500.0,0.00019983,2]
[359583801,1746150638422,-500.0,0.00019983,2]
[359583802,1746150638431,-500.0,0.00019983,2]
[359583803,1746150638440,-500.0,0.00019983,2]
[359583804,1746150638449,-500.0,0.00019983,2]
[359583805,1746150638458,-500.0,0.00019983,2]
[359583806,1746150638467,-500.0,0.00019983,2]
[359583807,1746150638476,-500.0,0.00019983,2]
[359583808,1746150638485,-3179.2044437,0.00019986,2]
[359583809,1746150638494,-370.7688903,0.00019986,2]
[359583810,1746150638503,-25849.6580734,0.00019986,2]
[359583811,1746150638513,-2332.5067225,0.00019986,2]
[359583812,1746150638523,-16578.2691847,0.00019986,2]
[359583813,1746150638533,-536.82485784,0.00019999,2]
[359583814,1746150638542,-311.93520587,0.00019999,2]
[359583815,1746150638553,-546.53360989,0.00019999,2]
[359583816,1746150638563,-202.71833399,0.0002,2]
[359583817,1746150638572,-1279699.62271404,0.0002,2]
[359583818,1746150638581,-1198395.99686123,0.0002,2]
[359583819,1746150638590,-576.3836892,0.0002,2]
[359583820,1746150638599,-250.0,0.0002,2]
[359583821,1746150638608,-250.0,0.0002,2]
[359583822,1746150638617,-250.0,0.0002,2]
[359583823,1746150638626,-250.0,0.0002,2]
[359583824,1746150638636,-250.0,0.0002,2]
[359583825,1746150638645,-250.0,0.0002,2]
[359583826,1746150638654,-250.0,0.0002,2]
[359583827,1746150638663,-250.0,0.0002,2]
[359583828,1746150638673,-250.0,0.0002,2]
[359583829,1746150638682,-250.0,0.0002,2]
[359583830,1746150638691,-358.6,0.0002,2]
[359583831,1746150638700,-151.0,0.0002,2]
[359583832,1746150638710,-151.0,0.0002,2]
[359583833,1746150638719,-2162993.19398332,0.0002,2]
[359583834,1746150638731,-2886.11746084,0.0002,2]
[359583835,1746150638745,-115294.10561988,0.0002,2]
[359583836,1746150638767,-3834.00425609,0.0002,2]
[359583837,1746150639971,-0.85219115,0.0002,2]
[359583838,1746150640010,-764.947,0.0002,2]
[359583839,1746150640028,-805.42814371,0.0002,2]
[359583840,1746150640039,-3712621.48271121,0.0002,2]
[359583841,1746150640103,-349.82050009,0.0002,2]
[359583842,1746150640211,-2421.15000765,0.0002,2]
[359583843,1746150640225,-967.07159406,0.0002,2]
[359583844,1746150640265,-825.94088642,0.0002,2]
[359583845,1746150640277,-1286.95895298,0.0002,2]
[359583846,1746150640288,-136098.14056772,0.0002,2]
[359583853,1746150643147,-391.31653083,0.0002,2]
[359583854,1746150643159,-841.09078813,0.0002,2]
[359583855,1746150643415,-735.915,0.0002,2]
[359583856,1746150643431,-7502.35497776,0.0002,2]
[359583857,1746150643442,-8393.81198358,0.0002,2]
[359583858,1746150643453,-31361.92882946,0.0002,2]
[359583859,1746150643465,-12817.6468411,0.0002,2]
[359583860,1746150643476,-300.42878841,0.0002,2]
[359583861,1746150643540,-1165.30404382,0.0002,2]
[359583862,1746150643560,-542.66915189,0.0002,2]
[359583863,1746150643572,-8257.49922451,0.0002,2]
[359583864,1746150643583,-854.01624939,0.0002,2]
[359583865,1746150643599,-1707.54595519,0.0002,2]
[359583866,1746150643611,-6312.82470067,0.0002,2]
[359583867,1746150643623,-781.78892163,0.0002,2]
[359583868,1746150643642,-1212.51978186,0.0002,2]
[359583869,1746150643659,-1121.145,0.0002,2]
[359583870,1746150643671,-5376.445856,0.0002,2]
[359583871,1746150643682,-7791.3417746,0.0002,2]
[359583872,1746150643694,-4291.94606349,0.0002,2]
[359583873,1746150645782,-3707.70170427,0.0002,2]
[359583874,1746150645794,-945.40299423,0.0002,2]
[359583875,1746150645973,-829.34513031,0.0002,2]
[359583876,1746150645987,-354.6959913,0.0002,2]
[359583877,1746150646009,-323.57617519,0.0002,2]
[359583878,1746150646048,-645.12208,0.0002,2]
[359583879,1746150646059,-669.0,0.0002,2]
[359583880,1746150646153,-4744.79967454,0.0002,2]
[359583881,1746150646165,-2523.70000002,0.0002,2]
[359583893,1746151254020,2815.97,0.00032877,60]
[359583894,1746151394914,1198.0,0.00032876,60]
[359583895,1746151503146,2000.0,0.00019305,2]
[359583896,1746151503172,2000.0,0.00019305,2]
[359583897,1746151503197,2000.0,0.00019305,2]
[359583898,1746151503220,2000.0,0.00019305,2]
[359583899,1746151503242,2000.0,0.00019305,2]
[359583900,1746151503265,2000.0,0.00019305,2]
[359583901,1746151503288,2000.0,0.00019305,2]
[359583902,1746151503310,2000.0,0.00019305,2]
[359583903,1746151503332,2000.0,0.00019305,2]
[359583904,1746151503355,2000.0,0.00019305,2]
[359583905,1746151503378,2000.0,0.00019305,2]
[359583906,1746151503401,2000.0,0.00019305,2]
[359583907,1746151503424,2000.0,0.00019305,2]
[359583908,1746151503447,2000.0,0.00019305,2]
[359583909,1746151503468,2000.0,0.00019305,2]
[359583910,1746151503490,2000.0,0.00019305,2]
[359583911,1746151503511,2000.0,0.00019305,2]
[359583912,1746151503533,2000.0,0.00019305,2]
[359583913,1746151503555,2000.0,0.00019305,2]
[359583914,1746151503577,2000.0,0.00019305,2]
[359583915,1746151503598,2000.0,0.00019305,2]
[359583916,1746151503619,2000.0,0.00019305,2]
[359583917,1746151503641,2000.0,0.00019305,2]
[359583918,1746151503663,2000.0,0.00019305,2]
[359583919,1746151503687,424400.0,0.00019305,2]
[359583920,1746151515168,-189.44622342,0.00019395,2]
[359583921,1746151519112,-152.8661778,0.00019395,2]
[359583922,1746151522868,-76.5184796,0.00019395,2]
[359583923,1746151545613,938.4,0.00017379,2]
[359583924,1746151576746,11229.332976,0.00032876,60]
[359583925,1746151597202,-365.995064,0.00019495,2]
[359583926,1746151597227,-250.0,0.00019593,2]
[359583927,1746151597252,-200.0,0.00019593,2]
[359583928,1746151597276,-200.0,0.00019618,2]
[359583929,1746151597299,-938.4,0.00019642,2]
[359583930,1746151597321,-178.64,0.0001976,2]
[359583931,1746151597344,-1200.0,0.00019785,2]
[359583932,1746151597365,-300.0,0.00019785,2]
[359583933,1746151597387,-300.0,0.00019785,2]
[359583934,1746151597408,-27335.5418,0.00019786,2]
[359583935,1746151597430,-170.5712156,0.00019791,2]
[359583936,1746151597451,-1041.009,0.00019791,2]
[359583937,1746151597473,-23900.0,0.00019808,2]
[359583938,1746151597494,-500.0,0.00019863,2]
[359583939,1746151597518,-603.63,0.00019882,2]
[359583940,1746151597545,-500.0,0.00019884,2]
[359583941,1746151597570,-500.0,0.00019884,2]
[359583942,1746151597596,-500.0,0.00019884,2]
[359583943,1746151597625,-500.0,0.00019884,2]
[359583944,1746151597651,-500.0,0.00019884,2]
[359583945,1746151597676,-500.0,0.00019884,2]
[359583946,1746151597702,-500.0,0.00019884,2]
[359583947,1746151597728,-500.0,0.00019884,2]
[359583948,1746151597753,-500.0,0.00019884,2]
[359583949,1746151597779,-500.0,0.00019884,2]
[359583950,1746151597806,-500.0,0.00019884,2]
[359583951,1746151597835,-500.0,0.00019884,2]
[359583952,1746151597864,-500.0,0.00019884,2]
[359583953,1746151597892,-500.0,0.00019884,2]
[359583954,1746151597919,-500.0,0.00019884,2]
[359583955,1746151597946,-500.0,0.00019884,2]
[359583956,1746151597973,-500.0,0.00019884,2]
[359583957,1746151598003,-500.0,0.00019884,2]
[359583958,1746151598034,-500.0,0.00019884,2]
[359583959,1746151598060,-500.0,0.00019884,2]
[359583960,1746151598088,-500.0,0.00019884,2]
[359583961,1746151598114,-500.0,0.00019884,2]
[359583962,1746151598144,-500.0,0.00019884,2]
[359583963,1746151598174,-500.0,0.00019884,2]
[359583964,1746151598201,-500.0,0.00019884,2]
[359583965,1746151598228,-500.0,0.00019884,2]
[359583966,1746151598254,-500.0,0.00019884,2]
[359583967,1746151598281,-500.0,0.00019884,2]
[359583968,1746151598308,-500.0,0.00019884,2]
[359583969,1746151598333,-500.0,0.00019884,2]
[359583970,1746151598358,-500.0,0.00019884,2]
[359583971,1746151598385,-500.0,0.00019884,2]
[359583972,1746151598411,-500.0,0.00019884,2]
[359583973,1746151598437,-500.0,0.00019884,2]
[359583974,1746151598465,-500.0,0.00019884,2]
[359583975,1746151598493,-500.0,0.00019884,2]
[359583976,1746151598522,-500.0,0.00019884,2]
[359583977,1746151598550,-500.0,0.00019884,2]
[359583978,1746151598576,-1948.84378402,0.00019884,2]
[359583979,1746151598604,-1948.84378402,0.00019884,2]
[359583980,1746151598632,-1948.84378402,0.00019884,2]
[359583981,1746151598662,-1948.84378402,0.00019884,2]
[359583982,1746151598691,-1948.84378402,0.00019884,2]
[359583983,1746151598719,-1948.84378402,0.00019884,2]
[359583984,1746151598746,-1948.84378402,0.00019884,2]
[359583985,1746151598774,-1948.84378402,0.00019884,2]
[359583986,1746151598802,-1948.84378402,0.00019884,2]
[359583987,1746151598829,-1948.84378402,0.00019884,2]
[359583988,1746151598855,-1948.84378402,0.00019884,2]
[359583989,1746151598882,-1948.84378402,0.00019884,2]
[359583990,1746151598907,-1948.84378402,0.00019884,2]
[359583991,1746151598932,-1948.84378402,0.00019884,2]
[359583992,1746151598958,-1948.84378402,0.00019884,2]
[359583993,1746151598987,-1948.84378402,0.00019884,2]
[359583994,1746151599017,-1948.84378402,0.00019884,2]
[359583995,1746151599044,-1948.84378402,0.00019884,2]
[359583996,1746151599071,-1948.84378402,0.00019884,2]
[359583997,1746151599097,-1948.84378402,0.00019884,2]
[359583998,1746151599127,-1948.84378402,0.00019884,2]
[359583999,1746151599153,-1948.84378402,0.00019884,2]
[359584000,1746151599182,-1948.84378402,0.00019884,2]
[359584001,1746151599212,-1948.84378402,0.00019884,2]
[359584002,1746151599241,-1948.84378402,0.00019884,2]
[359584003,1746151599267,-1948.84378402,0.00019884,2]
[359584004,1746151599294,-1948.84378402,0.00019884,2]
[359584005,1746151599321,-1948.84378402,0.00019884,2]
[359584006,1746151599347,-1948.84378402,0.00019884,2]
[359584007,1746151599375,-1948.84378402,0.00019884,2]
[359584008,1746151599402,-1948.84378402,0.00019884,2]
[359584009,1746151599429,-1948.84378402,0.00019884,2]
[359584010,1746151599458,-1948.84378402,0.00019884,2]
[359584011,1746151599488,-1948.84378402,0.00019884,2]
[359584012,1746151599517,-1948.84378402,0.00019884,2]
[359584013,1746151599549,-1948.84378402,0.00019884,2]
[359584014,1746151599574,-1948.84378402,0.00019884,2]
[359584015,1746151599600,-1948.84378402,0.00019884,2]
[359584016,1746151599628,-1948.84378402,0.00019884,2]
[359584017,1746151599656,-1948.84378402,0.00019884,2]
[359584018,1746151599684,-1948.84378402,0.00019884,2]
[359584019,1746151599712,-1900.12268942,0.00019884,2]
[359584020,1746151599740,-1900.12268942,0.00019884,2]
[359584021,1746151599767,-1900.12268942,0.00019884,2]
[359584022,1746151599794,-1900.12268942,0.00019884,2]
[359584023,1746151599822,-1900.12268942,0.00019884,2]
[359584024,1746151599851,-1900.12268942,0.00019884,2]
[359584025,1746151599878,-1900.12268942,0.00019884,2]
[359584026,1746151599904,-1900.12268942,0.00019884,2]
[359584027,1746151599930,-1900.12268942,0.00019884,2]
[359584028,1746151599957,-1900.12268942,0.00019884,2]
[359584029,1746151599984,-1900.12268942,0.00019884,2]
[359584030,1746151600011,-1900.12268942,0.00019884,2]
[359584031,1746151600033,-182.17273865,0.00019886,2]
[359584032,1746151600054,-3522.0966,0.00019886,2]
[359584033,1746151600076,-11746.5084,0.00019886,2]
[359584034,1746151600097,-1946.97562544,0.00019899,2]
[359584035,1746151600121,-200.0,0.00019907,2]
[359584036,1746151600148,-183.0,0.00019945,2]
[359584037,1746151600172,-207.4,0.00019953,2]
[359584038,1746151600194,-151.0,0.00019954,2]
[359584039,1746151600216,-2989.8953391,0.00019986,2]
[359584040,1746151600239,-7671.9657046,0.00019986,2]
[359584041,1746151600262,-124219.6189583,0.00019986,2]
[359584042,1746151600287,-458.2598208,0.00019986,2]
[359584043,1746151600310,-600.2034503,0.00019986,2]
[359584044,1746151600332,-494.98461552,0.00019986,2]
[359584045,1746151600355,-83497.2570253,0.00019986,2]
[359584046,1746151600377,-546.53360989,0.00019999,2]
[359584047,1746151600401,-151.9344769,0.00019999,2]
[359584048,1746151600424,-200.65801217,0.00019999,2]
[359584049,1746151600447,-230.31061217,0.00019999,2]
[359584050,1746151600472,-325091.07987076,0.0002,2]
[359584051,1746151652087,500.0,0.0003,30]
[359584065,1746151832574,-250.0,0.00019883,2]
[359584066,1746151832583,-200.0,0.00019883,2]
[359584067,1746151832592,-274.40119673,0.00019899,2]
[359584068,1746151832698,-25.59880327,0.00019899,2]
[359584069,1746151832717,-300.0,0.00019899,2]
[359584070,1746151832727,-1200.0,0.00019899,2]
[359584071,1746151832736,-214.0,0.00019899,2]
[359584072,1746151832746,-2444.3477922,0.000199,2]
[359584073,1746151832755,-394.21788602,0.000199,2]
[359584074,1746151832767,-23852.91695953,0.000199,2]
[359584075,1746151832776,-207.4,0.00019953,2]
[359584076,1746151832785,-180.66548449,0.00019954,2]
[359584077,1746151832795,-502.01494298,0.00019973,2]
[359584078,1746151832805,-508.50973916,0.00019973,2]
[359584079,1746151832815,-2382.0998371,0.00019986,2]
[359584080,1746151832824,-7550.16776703,0.00019986,2]
[359584091,1746151838545,-358.99789788,0.000199,2]
[359584092,1746151838555,-91417.68914207,0.00019986,2]
[359584093,1746151838566,-6112.3839409,0.00019986,2]
[359584094,1746151838577,-365.1032965,0.00019986,2]
[359584095,1746151838589,-1957806.4317783,0.0002,2]
[359584096,1746151838600,-698619.86454353,0.0002,2]
[359584097,1746151838609,-151.0,0.0002,2]
[359584098,1746151838619,-151.0,0.0002,2]
[359584099,1746151838629,-151.0,0.0002,2]
[359584100,1746151838639,-150.53,0.0002,2]
[359584101,1746151838648,-151.0,0.0002,2]
[359584102,1746151838658,-151.0,0.0002,2]
[359584103,1746151838667,-161.173846,0.0002,2]
[359584104,1746151838676,-301.504272,0.0002,2]
[359584105,1746151838686,-151.0,0.0002,2]
[359584106,1746151838695,-151.0,0.0002,2]
[359584107,1746151838705,-151.0,0.0002,2]
[359584108,1746151838714,-151.0,0.0002,2]
[359584109,1746151838725,-151.0,0.0002,2]
[359584110,1746151838735,-151.0,0.0002,2]
[359584111,1746151838744,-151.0,0.0002,2]
[359584112,1746151838755,-151.0,0.0002,2]
[359584113,1746151838764,-151.0,0.0002,2]
[359584114,1746151838773,-171.308797,0.0002,2]
[359584115,1746151838784,-151.0,0.0002,2]
[359584116,1746151838794,-151.0,0.0002,2]
[359584117,1746151838805,-258.872243,0.0002,2]
[359584118,1746151838814,-151.0,0.0002,2]
[359584119,1746151838825,-151.0,0.0002,2]
[359584120,1746151838835,-203.934156,0.0002,2]
[359584121,1746151838845,-203.934156,0.0002,2]
[359584122,1746151838854,-200.0,0.0002,2]
[359584123,1746151839112,-223.861338,0.0002,2]
[359584124,1746151839128,-223.861338,0.0002,2]
[359584125,1746151839139,-200.0,0.0002,2]
[359584126,1746151839150,-258.24607885,0.0002,2]
[359584127,1746151839160,-1580.1570273,0.0002,2]
[359584128,1746151839170,-151.0,0.0002,2]
[359584129,1746151839179,-151.0,0.0002,2]
[359584130,1746151839189,-250.0,0.00020058,2]
[359584131,1746151839203,-166.03,0.00020197,2]
[359584132,1746151839212,-200.0,0.000202,2]
[359584133,1746151839222,-200.0,0.000202,2]
[359584134,1746151839232,-500.0,0.00020207,2]
[359584135,1746151839244,-200.0,0.00020402,2]
[359584136,1746151839255,-502.61980221,0.00020604,2]
[359584137,1746151839264,-250.62515131,0.00020605,2]
[359584138,1746151839276,-1000.0,0.00020672,2]
[359584139,1746151839285,-15982.50076877,0.000207,2]
[359584140,1746151839295,-200.0,0.0002075,2]
[359584141,1746151839304,-3234.65234274,0.0002078,2]
[359584142,1746151839314,-1147.67,0.00020951,2]
[359584143,1746151839324,-64316.13,0.00020951,2]
[359584144,1746151839334,-2351.11,0.00020951,2]
[359584145,1746151839343,-9999.99,0.00020951,2]
[359584146,1746151839354,-1384.36,0.00020951,2]
[359584147,1746151839365,-9999.99,0.00020951,2]
[359584148,1746151839376,-9156.31,0.00020951,2]
[359584149,1746151839386,-810.39,0.00020951,5]
[359584150,1746151839397,-9999.99,0.00020951,2]
[359584151,1746151839407,-150.99,0.00020951,2]
[359584152,1746151839417,-486.61,0.00020951,2]
[359584153,1746151839428,-542.51,0.00020951,2]
[359584154,1746151839438,-1404.63,0.00020951,2]
[359584155,1746151839447,-999.99,0.00020951,2]
[359584156,1746151839457,-389.2,0.00020951,2]
[359584157,1746151839466,-9999.99,0.00020951,2]
[359584158,1746151839476,-150.99,0.00020951,2]
[359584159,1746151839486,-1154.72508518,0.00021,2]
[359584160,1746151839496,-190.58164633,0.00021,2]
[359584161,1746151839506,-350.0,0.00021,2]
[359584162,1746151839517,-215.0738,0.00021322,2]
[359584163,1746151839527,-2176.2,0.00021353,2]
[359584164,1746151839539,-166.55,0.00021467,2]
[359584165,1746151839548,-166.55,0.0002152,2]
[359584166,1746151839558,-150.0,0.0002154,2]
[359584167,1746151839567,-200.0,0.00021552,2]
[359584168,1746151839577,-166.55,0.00021574,2]
[359584169,1746151839586,-2444.34779217,0.00021635,2]
[359584170,1746151839595,-24247.13484551,0.00021635,2]
[359584171,1746151839605,-420.0,0.0002167,2]
[359584172,1746151839615,-7314.86831856,0.000217,2]
[359584173,1746151839625,-1680.0,0.00021774,2]
[359584174,1746151839635,-250.0,0.0002187,2]
[359584175,1746151839644,-200.0,0.0002187,2]
[359584176,1746151839657,-250.0,0.00021871,2]
[359584177,1746151839667,-200.0,0.00021871,2]
[359584178,1746151839677,-938.4,0.00021906,2]
[359584179,1746151839686,-268.05,0.00021917,2]
[359584180,1746151839696,-247.77380099,0.00022,2]
[359584181,1746151839708,-500.0,0.00022,2]
[359584182,1746151839718,-377.0,0.00022055,2]
[359584183,1746151839728,-232.19998928,0.0002211,2]
[359584184,1746151839737,-166.98,0.00022176,2]
[359584185,1746151839747,-1097.8656,0.000225,15]
[359584186,1746151839757,-5523.7254445,0.000225,2]
[359584187,1746151839767,-223.0315306,0.00022691,2]
[359584188,1746151839777,-400.0,0.00023,2]
[359584189,1746151839786,-19106.16773526,0.000232,2]
[359584191,1746151839796,-1000.0,0.00023256,2]
[359584192,1746151839805,-268.05,0.00023287,2]
[359584193,1746151839815,-2444.34779217,0.0002337,2]
[359584194,1746151839825,-24247.13484551,0.0002337,2]
[359584195,1746151839835,-166.98,0.00023396,2]
[359584196,1746151839845,-166.03,0.00023531,2]
[359584197,1746151839854,-587.0,0.00023599,2]
[359584198,1746151839864,-2351.0,0.00023826,2]
[359584199,1746151839874,-327.96,0.00023836,2]
[359584200,1746151839883,-10029.81877166,0.00024,2]
[359584201,1746151839892,-231.28369723,0.0002406,2]
[359584202,1746151839902,-938.4,0.0002417,2]
[359584203,1746151839912,-166.98,0.00024616,2]
[359584204,1746151839921,-268.05,0.00024657,2]
[359584205,1746151839930,-151.0,0.000248,7]
[359584206,1746151839940,-151.0,0.000248,7]
[359584207,1746151839949,-152.817659,0.000248,7]
[359584208,1746151839960,-151.0,0.000248,7]
[359584209,1746151839969,-151.0,0.000248,7]
[359584210,1746151839978,-151.0,0.000248,7]
[359584211,1746151839988,-151.0,0.000248,7]
[359584212,1746151839997,-151.0,0.000248,7]
[359584213,1746151840007,-156.41273,0.000248,7]
[359584214,1746151840017,-151.0,0.000248,7]
[359584215,1746151840026,-151.0,0.000248,7]
[359584216,1746151840036,-151.0,0.000248,7]
[359584217,1746151840045,-151.0,0.000248,7]
[359584218,1746151840054,-151.0,0.000248,7]
[359584219,1746151840065,-151.0,0.000248,7]
[359584220,1746151840075,-151.0,0.000248,7]
[359584221,1746151840086,-171.308797,0.000248,7]
[359584222,1746151840096,-151.0,0.000248,7]
[359584223,1746151840106,-151.0,0.000248,7]
[359584224,1746151840116,-151.0,0.000248,7]
[359584225,1746151840126,-151.0,0.000248,7]
[359584226,1746151840137,-203.934156,0.000248,7]
[359584227,1746151840147,-203.934156,0.000248,7]
[359584228,1746151840156,-223.861338,0.000248,7]
[359584229,1746151840166,-223.861338,0.000248,7]
[359584230,1746151840176,-569979.370485,0.000248,2]
[359584231,1746151840186,-84252.6747673,0.000249,2]
[359584232,1746151840198,-281.740845,0.0002498,7]
[359584233,1746151840207,-157.85898454,0.00025,2]
[359584234,1746151840216,-382.97909322,0.00025,2]
[359584235,1746151840226,-1028.11380351,0.00025,2]
[359584236,1746151840238,-8170.02163448,0.00025,2]
[359584237,1746151840248,-161.57638157,0.00025,2]
[359584238,1746151840259,-450.0,0.00025,2]
[359584239,1746151840271,-3263.75796655,0.000251,2]
[359584240,1746151840281,-2444.34779217,0.00025105,2]
[359584241,1746151840291,-24247.13484551,0.00025105,2]
[359584243,1746151840301,-500.89911374,0.00025211,2]
[359584245,1746151840310,-239.84119403,0.00025429,2]
[359584246,1746151840319,-823.0,0.00025699,2]
[359584247,1746151840329,-847.0,0.000258,2]
[359584248,1746151840340,-374.0,0.000258,2]
[359584250,1746151840350,-764.0,0.000258,2]
[359584252,1746151840360,-166.98,0.00025836,2]
[359584254,1746151840369,-1000.0,0.0002584,2]
[359584256,1746151840378,-268.05,0.00026027,2]
[359584258,1746151840388,-776.0,0.00026071,2]
[359584260,1746151840398,-1000.0,0.00026301,5]
[359584262,1746151840407,-1000.0,0.00026301,5]
[359584264,1746151840417,-1000.0,0.00026301,5]
[359584266,1746151840426,-1000.0,0.00026301,5]
[359584268,1746151840435,-1000.0,0.00026301,5]
[359584271,1746151840446,-1000.0,0.00026301,5]
[359584273,1746151840456,-1000.0,0.00026301,5]
[359584275,1746151840466,-1000.0,0.00026301,5]
[359584277,1746151840475,-1000.0,0.00026301,5]
[359584279,1746151840485,-1000.0,0.00026301,5]
[359584281,1746151840494,-442.0,0.00026301,5]
[359584283,1746151840504,-882.395,0.00026353,2]
[359584285,1746151840513,-1879.141,0.00026353,2]
[359584287,1746151840522,-1139.0,0.00026353,2]
[359584289,1746151840531,-938.4,0.00026434,2]
[359584291,1746151840541,-8818.48774566,0.000265,2]
[359584293,1746151840550,-248.71531821,0.00026798,2]
[359584295,1746151840560,-1273.0,0.000268,2]
[359584297,1746151840569,-2444.34779217,0.0002684,2]
[359584299,1746151840579,-24247.13484551,0.0002684,2]
[359584301,1746151840588,-211.28069797,0.0002685,2]
[359584302,1746151840598,-501.46838396,0.0002685,2]
[359584303,1746151840608,-500.0,0.0002685,2]
[359584304,1746151840618,-500.0,0.0002685,2]
[359584305,1746151840629,-500.0,0.0002685,2]
[359584306,1746151840639,-162.70725103,0.0002685,2]
[359584307,1746151840649,-500.70083783,0.0002685,2]
[359584308,1746151840658,-270.94662073,0.0002685,2]
[359584309,1746151840668,-500.0,0.0002685,2]
[359584310,1746151840678,-500.17079996,0.0002685,2]
[359584311,1746151840689,-500.91070348,0.0002685,2]
[359584312,1746151840698,-508.14953659,0.0002685,2]
[359584313,1746151840709,-330.93344218,0.0002685,2]
[359584314,1746151840719,-500.0,0.0002685,2]
[359584315,1746151840730,-315.61824848,0.0002685,2]
[359584316,1746151840740,-500.0,0.0002685,2]
[359584317,1746151840750,-187.42004372,0.0002685,2]
[359584318,1746151840760,-500.0,0.0002685,2]
[359584319,1746151840769,-501.22363039,0.0002685,2]
[359584320,1746151840779,-500.0,0.0002685,2]
[359584321,1746151840789,-344.41045066,0.0002685,2]
[359584322,1746151840799,-500.0,0.00027,2]
[359584323,1746151840808,-343.86961723,0.00027397,2]
[359584324,1746151840819,-500.0,0.00027397,2]
[359584325,1746151840828,-150.0,0.00027397,2]
[359584326,1746151840837,-268.05,0.00027397,2]
[359584327,1746151840847,-500.0,0.00027397,2]
[359584328,1746151840856,-150.38905316,0.00027397,2]
[359584329,1746151840866,-500.0,0.00027397,2]
[359584330,1746151840875,-441.0,0.00027397,2]
[359584331,1746151840885,-500.0,0.00027397,2]
[359584332,1746151840895,-500.0,0.00027397,2]
[359584333,1746151840905,-500.0,0.00027397,2]
[359584334,1746151840914,-150.0,0.00027397,2]
[359584335,1746151840924,-1000.0,0.00027397,2]
[359584336,1746151840933,-500.0,0.00027397,2]
[359584337,1746151840942,-437.0,0.00027397,2]
[359584338,1746151840951,-151.09399251,0.00027397,2]
[359584339,1746151840961,-150.0,0.00027397,2]
[359584340,1746151840970,-150.79274051,0.00027397,2]
[359584341,1746151840980,-202.7444423,0.00027397,2]
[359584342,1746151840989,-154.54925283,0.00027397,2]
[359584343,1746151840999,-500.0,0.00027397,2]
[359584344,1746151841009,-150.0,0.00027397,2]
[359584345,1746151841018,-500.0,0.00027397,2]
[359584346,1746151841027,-189.09,0.00027397,2]
[359584347,1746151841037,-825.42,0.00027397,2]
[359584348,1746151841047,-1000.0,0.00027397,2]
[359584349,1746151841057,-500.0,0.00027671,2]
[359584350,1746151841067,-150.0,0.00027671,2]
[359584351,1746151841077,-500.0,0.00027671,2]
[359584352,1746151841087,-500.0,0.00027671,2]
[359584353,1746151841096,-441.0,0.00027671,2]
[359584354,1746151841106,-500.0,0.00027671,2]
[359584355,1746151841116,-521.73356972,0.00027671,2]
[359584356,1746151841125,-500.0,0.00027671,2]
[359584357,1746151841135,-150.0,0.00027671,2]
[359584358,1746151841145,-1000.0,0.00027671,2]
[359584359,1746151841155,-500.0,0.00027671,2]
[359584360,1746151841165,-437.0,0.00027671,2]
[359584361,1746151841174,-150.0,0.00027671,2]
[359584362,1746151841184,-500.0,0.00027671,2]
[359584363,1746151841196,-500.0,0.00027671,2]
[359584364,1746151841206,-5759.2797625,0.00027816,2]